bitfinex-derivatives/quotes_ETHF0:USTF0_20250316
["timestamp","ask_amount","ask_price","bid_price","bid_amount"]
[1742125207892,0.00801089,1874.2,1874.1,15.98525]
[1742125210992,0.00801089,1874.2,1874.1,1.06715]
[1742125211196,4.28291089,1874.2,1873.9,1.06723]
[1742125211394,3.2078,1874.0,1873.9,1.06723]
[1742125211599,3.2078,1874.0,1873.9,1.06727]
[1742125211897,11.31,1874.1,1874.0,1.06721]
[1742125212099,11.31,1874.1,1873.7,14.29275]
[1742125212295,11.31,1874.1,1874.0,1.06721]
[1742125212499,0.00801089,1874.2,1874.1,1.06715]
[1742125212690,0.00801089,1874.2,1874.1,4.27495]
[1742125213085,11.31,1874.5,1874.4,1.06698]
[1742125215198,11.31,1874.5,1874.4,11.63118]
[1742125215696,11.31,1874.5,1874.3,1.07501089]
[1742125215896,3.2078,1874.4,1874.3,1.07501089]
[1742125216500,11.31,1874.5,1874.4,1.06698]
[1742125217797,23.20128369,1874.5,1874.4,1.06698]
[1742125219299,23.20128369,1874.5,1874.3,1.07503089]
[1742125219504,3.2078,1874.4,1874.3,1.07505089]
[1742125219697,14.478,1874.4,1874.3,0.00801089]
[1742125219900,15.54499,1874.4,1874.2,1.06707]
[1742125220199,5.7596,1874.3,1874.2,1.06707]
[1742125220395,17.0743,1874.3,1873.8,13.68828]
[1742125220597,3.2078,1873.9,1873.7,1.06735]
[1742125220802,16.8539,1873.8,1873.6,1.06739]
[1742125220994,16.8539,1873.8,1873.7,1.06738]
[1742125221694,11.3147,1873.8,1873.7,1.06738]
[1742125221905,11.3147,1873.8,1873.7,5.28138]
[1742125222091,5.5392,1874.2,1874.1,1.06715]
[1742125222995,8.747,1874.2,1873.9,2.66808]
[1742125223204,9.8141,1874.2,1873.9,4.214]
[1742125223498,1.06727,1873.9,1873.6,1.0674]
[1742125223703,11.1916,1873.8,1873.6,1.0674]
[1742125224301,15.46673,1873.8,1873.5,1.07546089]
[1742125224502,3.2078,1873.6,1873.5,1.07550089]
[1742125225101,14.3994,1873.6,1873.5,1.07550089]
[1742125225693,11.1916,1873.6,1873.5,1.07550089]
[1742125226098,3.2078,1873.8,1873.7,1.06738]
[1742125226604,11.1916,1874.0,1873.9,1.06727]
[1742125226799,4.27482,1874.4,1874.1,1.06712]
[1742125227001,11.1353,1874.3,1874.2,1.0671]
[1742125227698,11.1353,1874.3,1874.1,1.06712]
[1742125227898,11.1353,1874.3,1874.2,1.0671]
[1742125229108,11.1353,1874.3,1873.9,4.214]
[1742125229306,4.27503,1874.0,1873.8,1.06731]
[1742125229609,11.7104,1873.9,1873.7,1.06737]
[1742125229908,3.2078,1873.8,1873.7,1.06737]
[1742125230105,3.2078,1873.8,1873.5,1.07545089]
[1742125230406,3.2078,1873.6,1873.5,1.07545089]
[1742125230608,14.9182,1873.7,1873.6,1.06744]
[1742125231207,14.9182,1873.7,1873.5,0.00801089]
[1742125231513,1.06744,1873.6,1873.5,0.00801089]
[1742125231809,12.77784,1873.6,1873.3,1.06758]
[1742125231998,12.77784,1873.6,1873.0,16.71593]
[1742125231999,10.09058,1873.5,1872.5,10.39608837]
[1742125232201,3.2078,1873.1,1872.6,50.99381]
[1742125232400,3.2078,1872.8,1872.7,1.06795]
[1742125232906,14.9182,1873.0,1872.9,1.06784]
[1742125233103,14.9182,1873.0,1872.6,45.12401089]
[1742125233104,0.00801089,1872.9,1872.6,45.12401089]
[1742125233405,3.2078,1872.7,1872.6,1.07598089]
[1742125233605,3.2078,1872.7,1872.6,1.07602089]
[1742125233910,0.00801089,1872.9,1872.8,1.06789]
[1742125234107,3.2078,1873.3,1873.2,1.06767]
[1742125234305,3.2078,1873.5,1873.3,1.06757]
[1742125234508,3.2078,1873.5,1873.1,15.1891]
[1742125234811,3.2078,1873.5,1873.3,1.06759]
[1742125235012,3.2078,1873.5,1873.2,1.06765]
[1742125235213,3.2078,1873.5,1873.3,1.0676]
[1742125235413,3.2078,1873.5,1873.2,1.06762]
[1742125235708,15.2835789,1873.3,1872.7,3.2078]
[1742125235908,15.2835789,1873.3,1872.8,1.06789]
[1742125236114,12.0757789,1873.3,1873.2,1.06767]
[1742125236814,12.0757789,1873.3,1873.1,1.06768]
[1742125237006,16.3512189,1873.3,1872.9,1.06781]
[1742125237208,3.2078,1873.0,1872.9,1.06781]
[1742125237517,3.2078,1873.0,1872.9,1.06784]
[1742125237702,8.9072,1873.2,1872.7,11.6156]
[1742125237906,3.2078,1873.0,1872.9,1.06781]
[1742125238103,3.2078,1873.0,1872.8,1.06785]
[1742125238306,3.2078,1873.0,1872.9,1.06784]
[1742125238711,3.2078,1873.0,1872.8,1.06786]
[1742125238915,3.2078,1873.0,1872.8,1.06788]
[1742125239215,4.27561,1873.0,1872.6,1.07599089]
[1742125239416,3.2078,1873.0,1872.6,0.00801089]
[1742125239615,3.2078,1873.0,1872.7,1.06792]
[1742125239811,3.2078,1873.0,1872.6,10.91101089]
[1742125240219,4.27561,1873.0,1872.6,1.07599089]
[1742125240509,3.2078,1873.0,1872.9,1.06784]
[1742125240710,3.2078,1873.0,1872.8,1.06785]
[1742125241118,3.2078,1873.0,1872.9,1.06784]
[1742125242017,15.84696157,1873.1,1873.0,1.06778]
[1742125242615,15.84696157,1873.1,1873.0,11.88668]
[1742125243819,15.84696157,1873.1,1872.8,4.215]
[1742125244118,15.84696157,1873.1,1873.0,1.06778]
[1742125244511,15.2835789,1873.3,1873.1,1.0677]
[1742125244707,15.2835789,1873.3,1873.2,1.06767]
[1742125244914,15.2835789,1873.3,1873.1,1.0677]
[1742125245309,15.2835789,1873.3,1873.2,1.06767]
[1742125245922,12.0757789,1873.3,1873.2,1.06767]
[1742125246316,15.2835789,1873.3,1873.2,1.06767]
[1742125246816,12.0757789,1873.3,1873.2,1.06767]
[1742125247113,12.0757789,1873.3,1873.2,13.41817]
[1742125247623,12.0757789,1873.3,1873.2,1.06767]
[1742125247816,15.2835789,1873.3,1872.8,13.41835]
[1742125248016,3.2078,1873.1,1872.8,7.0447]
[1742125248211,3.2078,1873.1,1873.0,1.06778]
[1742125250229,15.2835789,1873.3,1873.2,1.06767]
[1742125250525,15.2835789,1873.3,1873.1,12.31359]
[1742125250823,11.3577,1873.2,1873.0,1.06778]
[1742125251014,3.2078,1873.1,1873.0,1.06778]
[1742125251523,11.3577,1873.2,1873.1,1.06772]
[1742125251713,27.32674058,1873.3,1873.2,1.06767]
[1742125251913,24.11894058,1873.3,1873.2,1.06767]
[1742125252816,27.32674058,1873.3,1873.1,11.1106]
[1742125253019,11.3577,1873.2,1873.0,5.28275]
[1742125253224,3.2078,1873.1,1873.0,5.28275]
[1742125253422,3.2078,1873.1,1872.8,7.0447]
[1742125253619,11.3577,1873.0,1872.9,1.06782]
[1742125254018,11.3577,1873.0,1872.8,1.06786]
[1742125254223,11.3577,1873.0,1872.6,0.00801089]
[1742125254417,4.27568,1872.9,1872.6,1.07600089]
[1742125254728,10.8338,1872.8,1872.7,1.06795]
[1742125255019,10.8338,1872.8,1872.6,1.07600089]
[1742125255224,11.90171,1872.8,1872.6,0.00801089]
[1742125255426,4.27579,1872.7,1872.3,30.67212]
[1742125255619,3.2078,1872.5,1872.1,16.3985]
[1742125255811,10.8338,1872.4,1872.3,1.06814]
[1742125256016,18.90316803,1872.7,1872.3,2.67043]
[1742125256217,10.8338,1872.6,1872.5,1.06806]
[1742125256612,13.25327892,1872.7,1872.6,1.06801]
[1742125258222,10.04547892,1872.7,1872.6,5.28301]
[1742125261119,16.2907789,1873.3,1872.6,5.28301]
[1742125261120,15.2835789,1873.3,1872.6,9.9228]
[1742125261319,13.8363,1873.1,1872.9,1.06782]
[1742125261514,13.8363,1873.1,1872.7,11.5952]
[1742125261515,10.03499841,1872.8,1872.7,12.66315]
[1742125261919,10.03499841,1872.8,1872.7,1.06795]
[1742125263726,10.03499841,1872.8,1872.7,12.25515]
[1742125264423,0.00801089,1872.9,1872.8,1.06789]
[1742125264622,0.00801089,1872.9,1872.8,8.49069]
[1742125265331,14.08840872,1873.2,1873.1,1.06772]
[1742125265632,14.08840872,1873.2,1873.1,8.49052]
[1742125265833,14.08840872,1873.2,1873.1,10.99052]
[1742125266030,12.16008872,1873.2,1873.1,10.99052]
[1742125266329,12.04316168,1873.4,1873.2,1.06767]
[1742125266534,10.47798979,1873.3,1873.2,18.47637]
[1742125266835,8.11135979,1873.3,1873.2,20.97637]
[1742125267029,12.04316168,1873.4,1873.3,1.06761]
[1742125267224,12.04316168,1873.4,1873.3,4.27541]
[1742125267429,12.04316168,1873.4,1873.3,6.77541]
[1742125267628,36.97959203,1873.8,1873.7,1.06738]
[1742125267936,35.87229203,1873.8,1873.7,5.28238]
[1742125268932,34.73216203,1873.8,1873.7,7.78238]
[1742125269230,33.61545203,1873.8,1873.7,7.78238]
[1742125269428,33.61545203,1873.8,1873.7,10.99018]
[1742125269826,31.78057203,1873.8,1873.7,10.99018]
[1742125270232,31.78057203,1873.8,1873.7,8.49018]
[1742125270737,31.78057203,1873.8,1873.7,22.09588]
[1742125270941,31.78057203,1873.8,1873.7,19.59588]
[1742125271332,31.78057203,1873.8,1873.7,22.09588]
[1742125273530,30.35750203,1873.8,1873.7,22.09588]
[1742125273932,28.03592203,1873.8,1873.7,22.09588]
[1742125274741,28.03592203,1873.8,1873.7,1.06738]
[1742125274942,51.85822203,1873.8,1873.7,1.06738]
[1742125276637,51.85822203,1873.8,1873.7,4.27518]
[1742125276838,51.85822203,1873.8,1873.7,1.06738]
[1742125279043,51.85822203,1873.8,1873.6,4.22001089]
[1742125279238,51.85822203,1873.8,1873.7,1.06738]
[1742125281231,51.85822203,1873.8,1873.6,4.22001089]
[1742125281444,51.85822203,1873.8,1873.7,1.06738]
[1742125286544,28.03592203,1873.8,1873.7,14.98798]
[1742125286747,38.88922203,1873.8,1873.7,14.98798]
[1742125287340,38.88922203,1873.8,1873.7,1.06738]
[1742125287540,51.70402203,1873.8,1873.7,1.06738]
[1742125287944,38.88922203,1873.8,1873.7,4.27518]
[1742125288547,38.88922203,1873.8,1873.7,1.06738]
[1742125289143,38.88922203,1873.8,1873.7,15.33238]
[1742125290649,38.88922203,1873.8,1873.7,1.06738]
[1742125290846,28.03592203,1873.8,1873.7,1.06738]
[1742125291049,28.03592203,1873.8,1873.7,4.27518]
[1742125291254,28.03592203,1873.8,1873.7,15.55708]
[1742125291553,38.60232203,1873.8,1873.7,15.55708]
[1742125293582,38.60232203,1873.8,1873.7,1.06738]
[1742125294494,38.60232203,1873.8,1873.6,5.28641089]
[1742125294785,5.5247,1873.7,1873.6,5.28641089]
[1742125294991,16.1398,1873.7,1873.6,5.28641089]
[1742125298085,9.44137,1873.7,1873.6,5.28641089]
[1742125298386,9.44137,1873.7,1873.6,16.66161089]
[1742125299189,28.03592203,1873.8,1873.7,1.06738]
[1742125299383,28.03592203,1873.8,1873.7,11.71718]
[1742125299886,28.03592203,1873.8,1873.7,14.92498]
[1742125301884,28.03592203,1873.8,1873.6,4.21901089]
[1742125301885,31.24372203,1873.8,1873.6,0.00801089]
[1742125302186,31.24372203,1873.8,1873.0,7.68592983]
[1742125302187,10.5853,1873.7,1873.2,1.06764]
[1742125302482,9.8547,1873.6,1873.4,1.06754]
[1742125302696,9.8547,1873.6,1873.1,2.66929]
[1742125302697,11.7145,1873.5,1873.0,2.66944]
[1742125302886,11.7145,1873.5,1872.6,13.60546451]
[1742125302887,14.9223,1873.5,1872.6,13.60546451]
[1742125303080,3.2078,1873.2,1873.0,1.06773]
[1742125303384,17.0735,1873.1,1873.0,1.06773]
[1742125303889,17.0735,1873.1,1872.9,1.07581089]
[1742125304075,6.6469,1873.0,1872.9,1.07581089]
[1742125304384,18.3614,1873.0,1872.9,1.07581089]
[1742125304778,21.92921,1873.0,1872.6,3.2078]
[1742125304977,3.2078,1872.8,1872.5,1.06804]
[1742125305180,3.2078,1872.8,1872.0,5.87866]
[1742125305181,3.2078,1872.6,1872.0,3.2078]
[1742125305378,3.2078,1872.4,1872.1,1.06829]
[1742125305581,11.6757,1872.3,1872.0,1.06832]
[1742125305788,11.6757,1872.3,1871.6,7.4178]
[1742125305789,3.2078,1872.2,1871.6,7.4178]
[1742125305974,18.5168,1872.3,1871.7,1.06849]
[1742125305975,3.2078,1872.0,1871.7,1.06849]
[1742125306177,11.6757,1871.9,1871.8,1.06846]
[1742125306873,11.65642,1871.9,1871.7,1.07649089]
[1742125307180,11.65642,1871.9,1871.8,1.06846]
[1742125307573,11.65642,1871.9,1871.7,0.00801089]
[1742125308071,5.6526,1871.8,1871.7,1.07653089]
[1742125308273,5.6526,1871.8,1871.7,0.00801089]
[1742125308852,8.8604,1871.8,1871.3,3.2078]
[1742125309059,3.2078,1871.6,1871.2,1.06877]
[1742125309247,3.2078,1871.6,1871.1,3.2078]
[1742125309453,7.2866,1871.5,1871.4,1.06868]
[1742125309649,7.2866,1871.5,1871.4,4.211]
[1742125309853,11.3279,1871.7,1871.6,1.06858]
[1742125310452,11.3279,1871.7,1871.3,18.04681089]
[1742125310657,11.3279,1871.7,1871.6,1.06858]
[1742125310958,11.3279,1871.7,1871.6,5.27958]
[1742125311754,10.4944,1872.1,1872.0,1.06835]
[1742125312055,10.4944,1872.1,1871.7,11.7023]
[1742125312248,10.4944,1872.1,1871.9,1.06839]
[1742125312947,7.2866,1872.1,1872.0,1.06835]
[1742125313152,0.00801089,1872.3,1872.2,1.06824]
[1742125313461,0.00801089,1872.3,1872.2,5.27924]
[1742125313857,0.00801089,1872.3,1872.2,16.98154]
[1742125314159,3.19979,1872.4,1872.3,1.06818]
[1742125315152,10.8414,1872.7,1872.4,1.06811]
[1742125315358,0.00801089,1872.5,1872.4,1.06811]
[1742125315871,0.00801089,1872.5,1872.3,4.28395089]
[1742125316052,0.00801089,1872.5,1872.3,0.00801089]
[1742125316257,0.00801089,1872.5,1872.3,1.07617089]
[1742125316765,3.2078,1872.4,1872.3,0.00801089]
[1742125317056,3.2078,1872.4,1872.0,1.06834]
[1742125317257,3.2078,1872.4,1871.9,33.822]
[1742125317465,3.2078,1872.4,1872.1,1.06829]
[1742125317855,3.2078,1872.4,1871.9,33.822]
[1742125318063,3.2078,1872.4,1872.1,1.07627089]
[1742125318565,4.27605,1872.2,1871.9,1.06837]
[1742125319066,3.2078,1872.2,1872.0,1.06833]
[1742125319261,3.2078,1872.2,1872.1,1.06829]
[1742125319762,3.2078,1872.4,1872.3,1.06818]
[1742125320470,0.00801089,1872.5,1872.4,1.06812]
[1742125321159,0.00801089,1872.5,1872.1,2.6707]
[1742125321458,0.00801089,1872.5,1872.4,1.06812]
[1742125321459,3.21581089,1872.5,1872.4,1.06812]
[1742125321660,3.21581089,1872.5,1872.0,2.67888089]
[1742125321864,3.21581089,1872.5,1872.2,1.06821]
[1742125322066,3.21581089,1872.5,1872.4,1.06812]
[1742125322262,0.00801089,1872.5,1872.4,1.06812]
[1742125322659,0.00801089,1872.5,1872.4,4.27592]
[1742125324468,0.00801089,1872.5,1872.4,3.2078]
[1742125324770,1.0682,1872.3,1872.0,0.00801089]
[1742125324971,4.276,1872.3,1872.0,0.00801089]
[1742125325271,4.27609,1872.1,1872.0,0.00801089]
[1742125325466,1.06837,1872.0,1871.8,4.211]
[1742125325664,7.2706,1872.2,1871.8,5.27943]
[1742125325971,7.2706,1872.2,1871.8,4.211]
[1742125326171,11.54667,1872.2,1871.9,1.06841]
[1742125326469,3.2078,1872.0,1871.7,1.06851]
[1742125326663,3.2078,1872.0,1871.6,2.67145]
[1742125326870,7.2706,1872.2,1872.1,1.06829]
[1742125327664,7.2706,1872.2,1872.0,11.3162]
[1742125327865,7.2706,1872.2,1872.1,1.06829]
[1742125328161,5.3467,1872.4,1872.2,1.06824]
[1742125328464,5.3467,1872.4,1872.3,12.38438]
[1742125328866,0.00801089,1872.5,1872.4,1.06812]
[1742125329867,0.00801089,1872.5,1872.3,1.06816]
[1742125330068,3.21581089,1872.5,1872.1,4.211]
[1742125330268,10.8772,1872.4,1872.3,1.06816]
[1742125330974,0.00801089,1872.5,1872.4,1.06812]
[1742125331964,0.00801089,1872.5,1872.2,15.46688]
[1742125332164,10.88521089,1872.5,1872.2,14.3987]
[1742125332368,10.88521089,1872.5,1872.2,4.27602]
[1742125332567,11.95331089,1872.5,1872.2,3.2078]
[1742125332768,10.88521089,1872.5,1872.2,4.27601]
[1742125333259,10.88521089,1872.5,1872.2,3.2078]
[1742125333565,3.2078,1872.4,1871.7,3.2078]
[1742125333770,1.06826,1872.2,1871.9,1.06841]
[1742125333964,3.2078,1872.0,1871.8,1.06843]
[1742125334163,11.0071,1871.9,1871.7,5.2795]
[1742125334365,12.07551,1871.9,1871.7,4.211]
[1742125334565,12.07553,1871.9,1871.6,1.06855]
[1742125334771,1.0685,1871.8,1871.5,44.56122]
[1742125334967,11.0071,1871.7,1871.5,4.27643]
[1742125335170,11.0071,1871.7,1871.6,1.06858]
[1742125335374,11.0071,1871.7,1871.5,3.2078]
[1742125335562,11.0071,1871.7,1871.5,4.27642]
[1742125335769,11.0071,1871.7,1871.6,1.06858]
[1742125335976,15.8512,1872.1,1872.0,1.06835]
[1742125336166,12.6434,1872.1,1871.8,2.67117]
[1742125336471,3.21581089,1872.5,1872.0,1.06835]
[1742125336667,3.21581089,1872.5,1872.4,1.06812]
[1742125337466,3.21581089,1872.5,1872.3,11.2738]
[1742125337677,3.21581089,1872.5,1872.3,12.34198]
[1742125337881,13.82961089,1872.5,1872.3,11.2738]
[1742125338674,3.21581089,1872.5,1872.2,5.27819]
[1742125338870,10.6138,1872.4,1872.2,16.55199]
[1742125339071,10.6138,1872.4,1872.2,4.21]
[1742125339270,10.6138,1872.4,1872.2,5.27822]
[1742125339880,10.6138,1872.4,1872.2,4.21]
[1742125340678,10.6138,1872.4,1872.0,3.2078]
[1742125340976,1.06824,1872.2,1871.9,4.21]
[1742125341276,13.8349,1872.1,1871.7,5.27849]
[1742125341471,1.06838,1872.0,1871.7,5.27849]
[1742125341677,10.6271,1871.9,1871.3,2.67178]
[1742125341868,3.2078,1871.7,1871.6,1.06858]
[1742125342068,1.06859,1871.6,1871.3,15.3283]
[1742125342264,3.2078,1871.4,1871.0,4.21]
[1742125342473,11.322,1871.3,1871.0,12.12568]
[1742125342671,11.322,1871.3,1870.7,10.40859516]
[1742125342875,11.322,1871.3,1870.8,11.0568]
[1742125343068,3.2078,1871.2,1870.8,11.0568]
[1742125343269,11.322,1871.1,1871.0,1.06886]
[1742125343470,3.2078,1871.2,1871.1,1.06886]
[1742125343669,0.00801089,1871.4,1871.3,1.06875]
[1742125343868,0.00801089,1871.4,1871.3,5.27875]
[1742125344472,0.00801089,1871.4,1871.3,4.21]
[1742125344473,3.21581089,1871.4,1871.3,4.21]
[1742125344679,0.00801089,1871.4,1871.3,1.06875]
[1742125344981,3.21581089,1871.4,1871.2,11.0568]
[1742125345168,10.8453,1871.3,1871.2,11.0568]
[1742125345480,10.8453,1871.3,1870.9,36.3395]
[1742125345481,10.8453,1871.3,1871.0,5.27992]
[1742125345672,3.21581089,1871.4,1871.1,11.7342]
[1742125346072,3.21581089,1871.4,1870.8,4.211]
[1742125346273,10.8453,1871.3,1870.9,1.06896]
[1742125346473,4.27661,1871.2,1871.0,11.7342]
[1742125346673,10.8453,1871.1,1870.5,9.9213]
[1742125346877,11.91418,1871.1,1870.7,1.06907]
[1742125347081,3.2078,1871.0,1870.8,11.7342]
[1742125347376,5.8284,1871.3,1871.0,1.06891]
[1742125347580,16.6737,1871.3,1871.1,11.7342]
[1742125348177,3.21581089,1871.4,1871.3,1.06875]
[1742125348374,0.00801089,1871.4,1871.3,1.06875]
[1742125348570,0.00801089,1871.4,1871.3,12.25665]
[1742125348774,0.00801089,1871.4,1871.2,5.27976]
[1742125348981,0.00801089,1871.4,1871.3,11.1879]
[1742125349778,0.00801089,1871.4,1871.0,1.0689]
[1742125350083,3.2078,1871.3,1871.1,4.211]
[1742125350280,10.6569,1871.2,1871.1,4.211]
[1742125350583,10.6569,1871.2,1870.9,15.3989]
[1742125350779,10.6569,1871.2,1871.0,1.0689]
[1742125350975,10.6569,1871.2,1871.0,11.1879]
[1742125351376,3.2078,1871.3,1871.0,11.1879]
[1742125351572,5.33361089,1871.4,1871.1,1.06884]
[1742125351779,5.33361089,1871.4,1871.2,11.0207]
[1742125351979,11.5114,1871.3,1871.2,11.0207]
[1742125352175,11.5114,1871.3,1870.9,4.211]
[1742125352481,14.7192,1871.3,1871.0,12.08961]
[1742125352682,4.27668,1871.1,1870.6,3.2078]
[1742125352873,4.27668,1871.1,1870.7,16.30075]
[1742125352874,11.5114,1871.0,1870.7,16.30075]
[1742125353076,11.5114,1871.0,1870.7,11.0207]
[1742125353276,11.5114,1871.0,1870.7,12.08979]
[1742125353883,19.65264,1871.0,1870.6,4.27691]
[1742125354188,6.90598,1870.9,1870.6,4.27693]
[1742125354395,3.2078,1870.7,1870.4,1.06923]
[1742125354681,3.2078,1870.5,1870.0,0.39550295]
[1742125354871,3.2078,1870.2,1870.1,1.06944]
[1742125355077,3.2078,1870.2,1869.8,14.0311]
[1742125355280,3.2078,1870.0,1869.9,1.06953]
[1742125355585,3.2078,1870.0,1869.7,1.07045]
[1742125355783,10.6182,1869.9,1869.7,1.07042]
[1742125355979,3.2078,1869.8,1869.7,1.07046]
[1742125356283,10.6182,1869.9,1869.7,0.0008]
[1742125356482,10.6182,1869.9,1869.8,1.06961]
[1742125356689,3.2078,1870.1,1870.0,1.06949]
[1742125357278,3.2078,1870.1,1869.7,15.0361]
[1742125357480,3.2078,1870.1,1870.0,1.06949]
[1742125357890,3.2078,1870.1,1869.9,1.06952]
[1742125358191,3.21581089,1870.3,1869.9,10.9515]
[1742125358584,0.00801089,1870.3,1870.2,4.27718]
[1742125359487,0.00801089,1870.3,1870.2,1.06938]
[1742125359790,6.6231,1871.0,1870.6,1.0691]
[1742125359984,7.69202,1871.0,1870.7,10.9515]
[1742125360190,6.6231,1871.0,1870.7,10.9515]
[1742125360489,3.2078,1870.9,1870.2,3.2078]
[1742125360685,3.2078,1870.6,1870.3,10.9921]
[1742125360989,4.27697,1870.6,1870.4,0.00801089]
[1742125361186,0.00801089,1870.7,1870.4,0.00801089]
[1742125361785,0.00801089,1870.7,1870.4,1.07725089]
[1742125361990,0.00801089,1870.7,1870.4,1.07722089]
[1742125362487,0.00801089,1870.7,1870.4,0.00801089]
[1742125362687,0.00801089,1870.7,1870.4,1.07726089]
[1742125363288,0.00801089,1870.7,1870.6,1.06915]
[1742125364387,0.00801089,1870.7,1870.5,1.06917]
[1742125364783,0.00801089,1870.7,1870.6,1.06915]
[1742125365286,0.00801089,1870.7,1870.5,1.06918]
[1742125365486,0.00801089,1870.7,1870.4,0.00801089]
[1742125365793,1.06921,1870.5,1870.4,0.00801089]
[1742125366281,3.56921,1870.5,1869.8,4.213]
[1742125366482,13.0082,1870.6,1869.8,11.3724]
[1742125366483,3.2078,1870.2,1869.8,11.3724]
[1742125366687,3.2078,1870.0,1869.7,0.0008]
[1742125366884,6.53255,1870.1,1869.9,1.06955]
[1742125367190,3.2078,1870.0,1869.7,11.3732]
[1742125367487,3.2078,1870.0,1869.9,1.06955]
[1742125367793,8.49004,1870.5,1870.2,1.06938]
[1742125367985,7.4208,1870.5,1870.1,1.06944]
[1742125368189,1.06947,1870.1,1869.8,5.28256]
[1742125368486,1.06939,1870.2,1870.0,1.06947]
[1742125368794,4.27724,1870.1,1869.9,1.06952]
[1742125368991,3.2078,1870.1,1870.0,1.06949]
[1742125369188,3.2078,1870.1,1869.8,11.3724]
[1742125369389,4.27725,1870.1,1869.7,0.0008]
[1742125369597,11.5665,1870.0,1869.7,11.5077]
[1742125369791,1.06956,1869.9,1869.7,0.0008]
[1742125369990,11.5665,1869.8,1869.7,0.0008]
[1742125370399,12.63611,1869.8,1869.7,0.0008]
[1742125370691,11.5665,1869.8,1869.7,0.0008]
[1742125370896,12.63611,1869.8,1869.7,0.0008]
[1742125371195,1.06993,1869.3,1869.0,3.2078]
[1742125371492,3.2078,1869.4,1869.1,1.07001]
[1742125371696,11.5665,1869.5,1869.2,1.0699]
[1742125371888,0.00801089,1869.4,1869.3,11.5069]
[1742125372089,0.00801089,1869.4,1869.1,11.5069]
[1742125372283,3.2078,1870.2,1869.3,2.67474]
[1742125372592,1.06952,1870.0,1869.6,1.0697]
[1742125372792,10.6116,1869.9,1869.7,11.3433]
[1742125373193,3.2078,1870.1,1869.8,1.06961]
[1742125373395,0.00801089,1870.0,1869.9,11.3433]
[1742125373595,10.61961089,1870.0,1869.6,7.42981089]
[1742125373790,10.61961089,1870.0,1869.7,14.01746]
[1742125373995,10.61961089,1870.0,1869.9,1.06955]
[1742125373996,0.00801089,1870.0,1869.9,1.06955]
[1742125374195,0.00801089,1870.0,1869.9,5.29955]
[1742125374387,0.00801089,1870.0,1869.9,7.79955]
[1742125374592,0.00801089,1870.0,1869.9,19.14285]
[1742125374990,0.00801089,1870.0,1869.9,16.64285]
[1742125375390,0.00801089,1870.0,1869.9,22.16905]
[1742125375794,0.00801089,1870.0,1869.9,12.41285]
[1742125376002,0.00801089,1870.0,1869.9,11.3433]
[1742125376196,0.00801089,1870.0,1869.9,15.5733]
[1742125376397,0.00801089,1870.0,1869.9,16.64285]
[1742125376589,0.00801089,1870.0,1869.9,15.5733]
[1742125376797,0.00801089,1870.0,1869.9,16.64285]
[1742125376992,0.00801089,1870.0,1869.9,15.5733]
[1742125377192,9.42888089,1870.0,1869.6,0.00801089]
[1742125377399,20.1286,1869.9,1869.6,0.00801089]
[1742125377594,20.1286,1869.9,1869.6,3.21581089]
[1742125377595,16.9208,1869.9,1869.6,3.21581089]
[1742125377791,0.00801089,1870.0,1869.9,1.06955]
[1742125378192,0.00801089,1870.0,1869.9,14.63215]
[1742125378695,0.00801089,1870.0,1869.9,21.47905]
[1742125378896,11.5128,1870.5,1870.4,1.06926]
[1742125379091,11.5128,1870.5,1870.3,4.265]
[1742125379401,3.2078,1871.0,1870.4,3.2078]
[1742125379697,3.2078,1870.9,1870.5,11.0852]
[1742125379902,11.2083,1870.8,1870.5,12.15438]
[1742125380198,14.4161,1870.8,1870.5,12.16239089]
[1742125380405,19.8158,1870.8,1870.5,12.16239089]
[1742125380591,19.8158,1870.8,1870.6,1.06914]
[1742125380902,16.608,1870.8,1870.7,1.06909]
[1742125381094,19.8158,1870.8,1870.7,1.06909]
[1742125381294,16.608,1870.8,1870.7,1.06909]
[1742125381493,11.2083,1870.8,1870.7,1.06909]
[1742125381698,3.21581089,1870.9,1870.8,1.06903]
[1742125381890,0.00801089,1870.9,1870.8,4.27683]
[1742125383104,0.00801089,1870.9,1870.8,6.77683]
[1742125383415,0.00801089,1870.9,1870.8,4.27683]
[1742125383703,0.00801089,1870.9,1870.8,1.06903]
[1742125385003,0.00801089,1870.9,1870.8,3.56903]
[1742125385204,0.00801089,1870.9,1870.8,9.16213]
[1742125385603,0.00801089,1870.9,1870.8,6.66213]
[1742125387003,0.00801089,1870.9,1870.8,1.06903]
[1742125387201,0.00801089,1870.9,1870.8,5.33403]
[1742125390306,0.00801089,1870.9,1870.8,7.83403]
[1742125390506,8.9e-07,1870.9,1870.8,8.26597173]
[1742125390895,8.9e-07,1870.9,1870.8,7.83403]
[1742125392208,8.9e-07,1870.9,1870.8,7.81003]
[1742125393910,8.9e-07,1870.9,1870.8,5.30203]
[1742125394301,8.9e-07,1870.9,1870.8,7.80203]
[1742125396506,8.9e-07,1870.9,1870.8,3.56903]
[1742125396711,8.9e-07,1870.9,1870.8,7.81503]
[1742125396912,8.9e-07,1870.9,1870.8,5.31503]
[1742125397310,8.9e-07,1870.9,1870.8,1.06903]
[1742125397508,8.9e-07,1870.9,1870.8,5.31703]
[1742125397823,8.9e-07,1870.9,1870.8,4.27683]
[1742125398001,8.9e-07,1870.9,1870.8,8.53483]
[1742125398201,8.9e-07,1870.9,1870.8,11.03483]
[1742125399703,8.9e-07,1870.9,1870.8,22.35683]
[1742125399908,5.8442,1871.8,1871.7,1.06852]
[1742125400109,10.7781,1871.9,1871.8,1.06846]
[1742125400916,10.7781,1871.9,1871.8,4.27626]
[1742125401113,0.00801089,1872.0,1871.9,1.06841]
[1742125401616,8.9e-07,1872.0,1871.9,1.06841]
[1742125405518,3.2078,1873.5,1873.1,1.06772]
[1742125405821,8.4949,1873.3,1873.0,1.06776]